Workbook

Sheet Table
B3: Matches Played | C3: Matches Won | D3: Games Won | E3: Games Lost | F3: Points Won | G3: Points Lost | H3: Points Diff
A4: =Template!B4 -> Hen and Chickens | B4: =COUNT(INDIRECT(CONCATENATE("'",A4,"'!E:E"))) -> 18 | C4: =SUM(INDIRECT(CONCATENATE("'",A4,"'!I:I"))) -> 12 | D4: =SUM(INDIRECT(CONCATENATE("'",A4,"'!E:E"))) -> 50 | E4: =SUM(INDIRECT(CONCATENATE("'",A4,"'!F:F"))) -> 40 | F4: =SUM(INDIRECT(CONCATENATE("'",A4,"'!G:G"))) -> 927 | G4: =SUM(INDIRECT(CONCATENATE("'",A4,"'!H:H"))) -> 847 | H4: =F4-G4 -> 80
A5: =Template!B6 -> Old Bulls Head | B5: =COUNT(INDIRECT(CONCATENATE("'",A5,"'!E:E"))) -> 18 | C5: =SUM(INDIRECT(CONCATENATE("'",A5,"'!I:I"))) -> 11 | D5: =SUM(INDIRECT(CONCATENATE("'",A5,"'!E:E"))) -> 53 | E5: =SUM(INDIRECT(CONCATENATE("'",A5,"'!F:F"))) -> 37 | F5: =SUM(INDIRECT(CONCATENATE("'",A5,"'!G:G"))) -> 935 | G5: =SUM(INDIRECT(CONCATENATE("'",A5,"'!H:H"))) -> 845 | H5: =F5-G5 -> 90
A6: =Template!B9 -> Brown Bear | B6: =COUNT(INDIRECT(CONCATENATE("'",A6,"'!E:E"))) -> 18 | C6: =SUM(INDIRECT(CONCATENATE("'",A6,"'!I:I"))) -> 11 | D6: =SUM(INDIRECT(CONCATENATE("'",A6,"'!E:E"))) -> 52 | E6: =SUM(INDIRECT(CONCATENATE("'",A6,"'!F:F"))) -> 38 | F6: =SUM(INDIRECT(CONCATENATE("'",A6,"'!G:G"))) -> 961 | G6: =SUM(INDIRECT(CONCATENATE("'",A6,"'!H:H"))) -> 797 | H6: =F6-G6 -> 164
A7: =Template!B8 -> Whitehills | B7: =COUNT(INDIRECT(CONCATENATE("'",A7,"'!E:E"))) -> 18 | C7: =SUM(INDIRECT(CONCATENATE("'",A7,"'!I:I"))) -> 11 | D7: =SUM(INDIRECT(CONCATENATE("'",A7,"'!E:E"))) -> 51 | E7: =SUM(INDIRECT(CONCATENATE("'",A7,"'!F:F"))) -> 39 | F7: =SUM(INDIRECT(CONCATENATE("'",A7,"'!G:G"))) -> 960 | G7: =SUM(INDIRECT(CONCATENATE("'",A7,"'!H:H"))) -> 849 | H7: =F7-G7 -> 111
A8: =Template!B7 -> Farmers Boy | B8: =COUNT(INDIRECT(CONCATENATE("'",A8,"'!E:E"))) -> 18 | C8: =SUM(INDIRECT(CONCATENATE("'",A8,"'!I:I"))) -> 9 | D8: =SUM(INDIRECT(CONCATENATE("'",A8,"'!E:E"))) -> 49 | E8: =SUM(INDIRECT(CONCATENATE("'",A8,"'!F:F"))) -> 41 | F8: =SUM(INDIRECT(CONCATENATE("'",A8,"'!G:G"))) -> 924 | G8: =SUM(INDIRECT(CONCATENATE("'",A8,"'!H:H"))) -> 860 | H8: =F8-G8 -> 64
A9: =Template!B3 -> Plough | B9: =COUNT(INDIRECT(CONCATENATE("'",A9,"'!E:E"))) -> 18 | C9: =SUM(INDIRECT(CONCATENATE("'",A9,"'!I:I"))) -> 5 | D9: =SUM(INDIRECT(CONCATENATE("'",A9,"'!E:E"))) -> 34 | E9: =SUM(INDIRECT(CONCATENATE("'",A9,"'!F:F"))) -> 56 | F9: =SUM(INDIRECT(CONCATENATE("'",A9,"'!G:G"))) -> 826 | G9: =SUM(INDIRECT(CONCATENATE("'",A9,"'!H:H"))) -> 997 | H9: =F9-G9 -> -171
A10: =Template!B2 -> George A | B10: =COUNT(INDIRECT(CONCATENATE("'",A10,"'!E:E"))) -> 18 | C10: =SUM(INDIRECT(CONCATENATE("'",A10,"'!I:I"))) -> 4 | D10: =SUM(INDIRECT(CONCATENATE("'",A10,"'!E:E"))) -> 26 | E10: =SUM(INDIRECT(CONCATENATE("'",A10,"'!F:F"))) -> 64 | F10: =SUM(INDIRECT(CONCATENATE("'",A10,"'!G:G"))) -> 726 | G10: =SUM(INDIRECT(CONCATENATE("'",A10,"'!H:H"))) -> 1049 | H10: =F10-G10 -> -323
A11: =Template!B5 -> Bye | B11: =COUNT(INDIRECT(CONCATENATE("'",A11,"'!E:E"))) -> 0 | C11: =SUM(INDIRECT(CONCATENATE("'",A11,"'!I:I"))) -> 0 | D11: =SUM(INDIRECT(CONCATENATE("'",A11,"'!E:E"))) -> 0 | E11: =SUM(INDIRECT(CONCATENATE("'",A11,"'!F:F"))) -> 0 | F11: =SUM(INDIRECT(CONCATENATE("'",A11,"'!G:G"))) -> 0 | G11: =SUM(INDIRECT(CONCATENATE("'",A11,"'!H:H"))) -> 0 | H11: =F11-G11 -> 0

Sheet George A
A2: Team | B2: =Template!B2 -> George A | D2: =CONCATENATE("Home Games:",COUNTIF(C5:C999,"Home")," Away Games:",COUNTIF(C5:C999,"Away")) -> Home Games:11 Away Games:10
K3: Check that there are enough points to win the games
A4: Date | B4: Week | C4: Home/Away | D4: Opponent | E4: Games Won | F4: Games lost | G4: Points For | H4: Points Against | I4: Match Won? | J4: Check that input numbers are within range | K4: Home | L4: Away
A5: =Template!B20 -> 30.04.2018 | B5: 1 | C5: Home | D5: =Template!D20 -> Brown Bear | E5: 3 | F5: =IF(E5="","",5-E5) -> 2 | G5: 44 | H5: 57 | I5: =IF(E5="","",IF(E5>2,1,0)) -> 1 | J5: =IF(E5="","",IF(OR(E5<0,E5>5,G5<0,G5>(5*13),H5<0,H5>(5*13)),"Number out of range error","Valid Scores entered")) -> Valid Scores entered | K5: =IF(E5="","",IF((E5*13>G5),"Error in submitting Games Won or Points Home","OK")) -> OK | L5: =IF(E5="","",IF((F5*13>H5),"Error in submitting Games Won or Points Away","OK")) -> OK
A6: =Template!B21 -> 14.05.2018 | B6: =B5+1 -> 2 | C6: Away | D6: =Template!C21 -> Whitehills | E6: =INDIRECT(CONCATENATE("'",$D6,"'!$F6")) -> 1 | F6: 4 | G6: =INDIRECT(CONCATENATE("'",$D6,"'!H6")) -> 40 | H6: =INDIRECT(CONCATENATE("'",$D6,"'!G6")) -> 64 | I6: =IF(E6="","",IF(E6>2,1,0)) -> 0 | J6: =IF(E6="","",IF(OR(E6<0,E6>5,G6<0,G6>(5*13),H6<0,H6>(5*13)),"Number out of range error","Valid Scores entered")) -> Valid Scores entered | K6: =IF(E6="","",IF((E6*13>G6),"Error in submitting Games Won or Points Home","OK")) -> OK | L6: =IF(E6="","",IF((F6*13>H6),"Error in submitting Games Won or Points Away","OK")) -> OK
A7: =Template!B22 -> 21.05.2018 | B7: =B6+1 -> 3 | C7: Home | D7: =Template!D22 -> Farmers Boy | E7: 2 | F7: 3 | G7: 48 | H7: 51 | I7: =IF(E7="","",IF(E7>2,1,0)) -> 0 | J7: =IF(E7="","",IF(OR(E7<0,E7>5,G7<0,G7>(5*13),H7<0,H7>(5*13)),"Number out of range error","Valid Scores entered")) -> Valid Scores entered | K7: =IF(E7="","",IF((E7*13>G7),"Error in submitting Games Won or Points Home","OK")) -> OK | L7: OK
A8: =Template!B23 -> 04.06.2018 | B8: 4 | C8: Away | D8: =Template!C23 -> Old Bulls Head | E8: =INDIRECT(CONCATENATE("'",$D8,"'!$F8")) -> 0 | F8: 5 | G8: =INDIRECT(CONCATENATE("'",$D8,"'!H8")) -> 35 | H8: =INDIRECT(CONCATENATE("'",$D8,"'!G8")) -> 65 | I8: 0 | J8: Valid Scores entered | K8: OK | L8: OK
A9: =Template!B24 -> 11.06.2018 | B9: 5 | C9: Home | D9: =Template!D24 -> Bye
A10: =Template!B25 -> 18.06.2018 | B10: 6 | C10: Away | D10: =Template!C25 -> Hen and Chickens | E10: =INDIRECT(CONCATENATE("'",$D10,"'!$F10")) -> 1 | F10: 4 | G10: =INDIRECT(CONCATENATE("'",$D10,"'!H10")) -> 46 | H10: =INDIRECT(CONCATENATE("'",$D10,"'!G10")) -> 56 | I10: 0 | J10: Valid Scores entered | K10: OK | L10: OK
A11: =Template!B26 -> 25.06.2018 | B11: 7 | C11: Home | D11: =Template!D26 -> Plough | E11: 2 | F11: 3 | G11: 44 | H11: 56 | I11: 0 | J11: Valid Scores entered | K11: OK | L11: OK
A12: =Template!B27 -> 02.07.2018 | B12: 8 | C12: Away | D12: =Template!C27 -> Brown Bear | E12: =INDIRECT(CONCATENATE("'",$D12,"'!$F12")) -> 0 | F12: 5 | G12: =INDIRECT(CONCATENATE("'",$D12,"'!H12")) -> 28 | H12: =INDIRECT(CONCATENATE("'",$D12,"'!G12")) -> 65 | I12: 0 | J12: Valid Scores entered | K12: OK | L12: OK
A13: =Template!B28 -> 09.07.2018 | B13: 9 | C13: Home | D13: =Template!D28 -> Whitehills | E13: 3 | F13: 2 | G13: 55 | H13: 40 | I13: 1 | J13: Valid Scores entered | K13: OK | L13: OK
A14: =Template!B29 -> 16.07.2018 | B14: 10 | C14: Away | D14: =Template!C29 -> Farmers Boy | E14: =INDIRECT(CONCATENATE("'",$D14,"'!$F14")) -> 1 | F14: 4 | G14: =INDIRECT(CONCATENATE("'",$D14,"'!H14")) -> 51 | H14: =INDIRECT(CONCATENATE("'",$D14,"'!G14")) -> 64 | I14: 0 | J14: Valid Scores entered | K14: OK | L14: OK
A15: =Template!B30 -> 23.07.2018 | B15: 11 | C15: Home | D15: =Template!D30 -> Old Bulls Head | E15: 3 | F15: 2 | G15: 49 | H15: 55 | I15: 1 | J15: Valid Scores entered | K15: OK | L15: OK
A16: =Template!B31 -> 30.07.2018 | B16: 12 | C16: Away | D16: =Template!C31 -> Bye | E16: =INDIRECT(CONCATENATE("'",$D16,"'!$F16")) ->  | G16: =INDIRECT(CONCATENATE("'",$D16,"'!H16")) -> 0 | H16: =INDIRECT(CONCATENATE("'",$D16,"'!G16")) -> 0
A17: =Template!B32 -> 06.08.2018 | B17: 13 | C17: Home | D17: =Template!D32 -> Hen and Chickens | E17: 1 | F17: 4 | G17: 29 | H17: 62 | I17: 0 | J17: Valid Scores entered | K17: OK | L17: OK
A18: =Template!B33 -> 13.08.2018 | B18: 14 | C18: Away | D18: =Template!C33 -> Plough | E18: =INDIRECT(CONCATENATE("'",$D18,"'!$F18")) -> 1 | F18: 4 | G18: =INDIRECT(CONCATENATE("'",$D18,"'!H18")) -> 43 | H18: =INDIRECT(CONCATENATE("'",$D18,"'!G18")) -> 63 | I18: 0 | J18: Valid Scores entered | K18: OK | L18: OK
A19: =Template!B34 -> 20.08.2018 | B19: 15 | C19: Home | D19: =Template!D34 -> Brown Bear | E19: 2 | F19: 3 | G19: 35 | H19: 53 | I19: 0 | J19: Valid Scores entered | K19: OK | L19: OK
A20: =Template!B35 -> 03.09.2018 | B20: 16 | C20: Away | D20: =Template!C35 -> Whitehills | E20: =INDIRECT(CONCATENATE("'",$D20,"'!$F20")) -> 1 | F20: 4 | G20: =INDIRECT(CONCATENATE("'",$D20,"'!H20")) -> 23 | H20: =INDIRECT(CONCATENATE("'",$D20,"'!G20")) -> 59 | I20: 0 | J20: Valid Scores entered | K20: OK | L20: OK
A21: =Template!B36 -> 10.09.2018 | B21: 17 | C21: Home | D21: =Template!D36 -> Farmers Boy | E21: 3 | F21: 2 | G21: 57 | H21: 53 | I21: 1 | J21: Valid Scores entered | K21: OK | L21: OK
A22: =Template!B37 -> 17.09.2018 | B22: 18 | C22: Away | D22: =Template!C37 -> Old Bulls Head | E22: =INDIRECT(CONCATENATE("'",$D22,"'!$F22")) -> 0 | F22: 5 | G22: =INDIRECT(CONCATENATE("'",$D22,"'!H22")) -> 25 | H22: =INDIRECT(CONCATENATE("'",$D22,"'!G22")) -> 65 | I22: 0 | J22: Valid Scores entered | K22: OK | L22: OK
A23: =Template!B38 -> 24.09.2018 | B23: 19 | C23: Home | D23: =Template!D38 -> Bye
A24: =Template!B39 -> 01.10.2018 | B24: 20 | C24: Away | D24: =Template!C39 -> Hen and Chickens | E24: =INDIRECT(CONCATENATE("'",$D24,"'!$F24")) -> 1 | F24: 4 | G24: =INDIRECT(CONCATENATE("'",$D24,"'!H24")) -> 29 | H24: =INDIRECT(CONCATENATE("'",$D24,"'!G24")) -> 62 | I24: 0 | J24: Valid Scores entered | K24: OK | L24: OK
A25: =Template!B40 -> 08.10.2018 | B25: 21 | C25: Home | D25: =Template!D40 -> Plough | E25: 1 | F25: 4 | G25: 45 | H25: 59 | I25: 0 | J25: Valid Scores entered | K25: OK | L25: OK

Sheet Plough
A2: Team | B2: =Template!B3 -> Plough | D2: =CONCATENATE("Home Games:",COUNTIF(C5:C999,"Home")," Away Games:",COUNTIF(C5:C999,"Away")) -> Home Games:11 Away Games:10
K3: Check that there are enough points to win the games
A4: Date | B4: Week | C4: Home/Away | D4: Opponent | E4: Games Won | F4: Games lost | G4: Points For | H4: Points Against | I4: Match Won? | J4: Check that input numbers are within range | K4: Home | L4: Away
A5: =Template!B20 -> 30.04.2018 | B5: 1 | C5: Home | D5: =Template!F20 -> Whitehills | E5: 2 | F5: =IF(E5="","",5-E5) -> 3 | G5: 50 | H5: 56 | I5: =IF(E5="","",IF(E5>2,1,0)) -> 0 | J5: =IF(E5="","",IF(OR(E5<0,E5>5,G5<0,G5>(5*13),H5<0,H5>(5*13)),"Number out of range error","Valid Scores entered")) -> Valid Scores entered | K5: =IF(E5="","",IF((E5*13>G5),"Error in submitting Games Won or Points Home","OK")) -> OK | L5: =IF(E5="","",IF((F5*13>H5),"Error in submitting Games Won or Points Away","OK")) -> OK
A6: =Template!B21 -> 14.05.2018 | B6: =B5+1 -> 2 | C6: Away | D6: =Template!E21 -> Farmers Boy | E6: =INDIRECT(CONCATENATE("'",$D6,"'!$F6")) -> 0 | F6: 5 | G6: =INDIRECT(CONCATENATE("'",$D6,"'!H6")) -> 31 | H6: =INDIRECT(CONCATENATE("'",$D6,"'!G6")) -> 65 | I6: =IF(E6="","",IF(E6>2,1,0)) -> 0 | J6: =IF(E6="","",IF(OR(E6<0,E6>5,G6<0,G6>(5*13),H6<0,H6>(5*13)),"Number out of range error","Valid Scores entered")) -> Valid Scores entered | K6: =IF(E6="","",IF((E6*13>G6),"Error in submitting Games Won or Points Home","OK")) -> OK | L6: =IF(E6="","",IF((F6*13>H6),"Error in submitting Games Won or Points Away","OK")) -> OK
A7: =Template!B22 -> 21.05.2018 | B7: =B6+1 -> 3 | C7: Home | D7: =Template!F22 -> Old Bulls Head | E7: 1 | F7: 4 | G7: 44 | H7: 58 | I7: 0 | J7: Valid Scores entered | K7: OK | L7: OK
A8: =Template!B23 -> 04.06.2018 | B8: 4 | C8: Away | D8: =Template!E23 -> Bye | E8: =INDIRECT(CONCATENATE("'",$D8,"'!$F8")) ->  | G8: =INDIRECT(CONCATENATE("'",$D8,"'!H8")) -> 0 | H8: =INDIRECT(CONCATENATE("'",$D8,"'!G8")) -> 0
A9: =Template!B24 -> 11.06.2018 | B9: 5 | C9: Home | D9: =Template!F24 -> Hen and Chickens | E9: 2 | F9: 3 | G9: 46 | H9: 52 | I9: 0 | J9: Valid Scores entered | K9: OK | L9: OK
A10: =Template!B25 -> 18.06.2018 | B10: 6 | C10: Home | D10: =Template!J25 -> Brown Bear | E10: 3 | F10: 2 | G10: 54 | H10: 55 | I10: 1 | J10: Valid Scores entered | K10: OK | L10: OK
A11: =Template!B26 -> 25.06.2018 | B11: 7 | C11: Away | D11: =Template!C26 -> George A | E11: =INDIRECT(CONCATENATE("'",$D11,"'!$F11")) -> 3 | F11: 2 | G11: =INDIRECT(CONCATENATE("'",$D11,"'!H11")) -> 56 | H11: =INDIRECT(CONCATENATE("'",$D11,"'!G11")) -> 44 | I11: 1 | J11: Valid Scores entered | K11: OK | L11: OK
A12: =Template!B27 -> 02.07.2018 | B12: 8 | C12: Away | D12: =Template!E27 -> Whitehills | E12: =INDIRECT(CONCATENATE("'",$D12,"'!$F12")) -> 1 | F12: 4 | G12: =INDIRECT(CONCATENATE("'",$D12,"'!H11")) -> 51 | H12: =INDIRECT(CONCATENATE("'",$D12,"'!G11")) -> 59 | I12: 0 | J12: Valid Scores entered | K12: OK | L12: OK
A13: =Template!B28 -> 09.07.2018 | B13: 9 | C13: Home | D13: =Template!F28 -> Farmers Boy | E13: 1 | F13: 4 | G13: 48 | H13: 61 | I13: 0 | J13: Valid Scores entered | K13: OK | L13: OK
A14: =Template!B29 -> 16.07.2018 | B14: 10 | C14: Away | D14: =Template!E29 -> Old Bulls Head | E14: =INDIRECT(CONCATENATE("'",$D14,"'!$F14")) -> 0 | F14: 5 | G14: =INDIRECT(CONCATENATE("'",$D14,"'!H14")) -> 26 | H14: =INDIRECT(CONCATENATE("'",$D14,"'!G14")) -> 65 | I14: 0 | J14: Valid Scores entered | K14: OK | L14: OK
A15: =Template!B30 -> 23.07.2018 | B15: 11 | C15: Home | D15: =Template!F30 -> Bye
A16: =Template!B31 -> 30.07.2018 | B16: 12 | C16: Away | D16: =Template!E31 -> Hen and Chickens | E16: =INDIRECT(CONCATENATE("'",$D16,"'!$F16")) -> 2 | F16: 3 | G16: =INDIRECT(CONCATENATE("'",$D16,"'!H16")) -> 50 | H16: =INDIRECT(CONCATENATE("'",$D16,"'!G16")) -> 61 | I16: 0 | J16: Valid Scores entered | K16: OK | L16: OK
A17: =Template!B32 -> 06.08.2018 | B17: 13 | C17: Away | D17: =Template!I32 -> Brown Bear | E17: =INDIRECT(CONCATENATE("'",$D17,"'!$F17")) -> 3 | F17: 2 | G17: =INDIRECT(CONCATENATE("'",$D17,"'!H17")) -> 55 | H17: =INDIRECT(CONCATENATE("'",$D17,"'!G17")) -> 48 | I17: 1 | J17: Valid Scores entered | K17: OK | L17: OK
A18: =Template!B33 -> 13.08.2018 | B18: 14 | C18: Home | D18: =Template!D33 -> George A | E18: 4 | F18: 1 | G18: 63 | H18: 43 | I18: 1 | J18: Valid Scores entered | K18: OK | L18: OK
A19: =Template!B34 -> 20.08.2018 | B19: 15 | C19: Home | D19: =Template!F34 -> Whitehills | E19: 2 | F19: 3 | G19: 44 | H19: 59 | I19: 0 | J19: Valid Scores entered | K19: OK | L19: OK
A20: =Template!B35 -> 03.09.2018 | B20: 16 | C20: Away | D20: =Template!E35 -> Farmers Boy | E20: =INDIRECT(CONCATENATE("'",$D20,"'!$F20")) -> 1 | F20: 4 | G20: =INDIRECT(CONCATENATE("'",$D20,"'!H20")) -> 18 | H20: =INDIRECT(CONCATENATE("'",$D20,"'!G20")) -> 58 | I20: 0 | J20: Valid Scores entered | K20: OK | L20: OK
A21: =Template!B36 -> 10.09.2018 | B21: 17 | C21: Home | D21: =Template!F36 -> Old Bulls Head | E21: 2 | F21: 3 | G21: 40 | H21: 48 | I21: 0 | J21: Valid Scores entered | K21: OK | L21: OK
A22: =Template!B37 -> 17.09.2018 | B22: 18 | C22: Away | D22: =Template!E37 -> Bye | E22: =INDIRECT(CONCATENATE("'",$D22,"'!$F22")) ->  | G22: =INDIRECT(CONCATENATE("'",$D22,"'!H22")) -> 0 | H22: =INDIRECT(CONCATENATE("'",$D22,"'!G22")) -> 0
A23: =Template!B38 -> 24.09.2018 | B23: 19 | C23: Home | D23: =Template!F38 -> Hen and Chickens | E23: 2 | F23: 3 | G23: 49 | H23: 58 | I23: =IF(E23="","",IF(E23>2,1,0)) -> 0 | J23: =IF(E23="","",IF(OR(E23<0,E23>5,G23<0,G23>(5*13),H23<0,H23>(5*13)),"Number out of range error","Valid Scores entered")) -> Valid Scores entered | K23: =IF(E23="","",IF((E23*13>G23),"Error in submitting Games Won or Points Home","OK")) -> OK | L23: =IF(E23="","",IF((F23*13>H23),"Error in submitting Games Won or Points Away","OK")) -> OK
A24: =Template!B39 -> 01.10.2018 | B24: 20 | C24: Home | D24: =Template!J39 -> Brown Bear | E24: 1 | F24: 4 | G24: 42 | H24: 62 | I24: 0 | J24: Valid Scores entered | K24: OK | L24: OK
A25: =Template!B40 -> 08.10.2018 | B25: 21 | C25: Away | D25: =Template!C40 -> George A | E25: =INDIRECT(CONCATENATE("'",$D25,"'!$F25")) -> 4 | F25: 1 | G25: =INDIRECT(CONCATENATE("'",$D25,"'!H25")) -> 59 | H25: =INDIRECT(CONCATENATE("'",$D25,"'!G25")) -> 45 | I25: 1 | J25: Valid Scores entered | K25: OK | L25: OK

Sheet Hen and Chickens
A2: Team | B2: =Template!B4 -> Hen and Chickens | D2: =CONCATENATE("Home Games:",COUNTIF(C5:C999,"Home")," Away Games:",COUNTIF(C5:C999,"Away")) -> Home Games:11 Away Games:10
K3: Check that there are enough points to win the games
A4: Date | B4: Week | C4: Home/Away | D4: Opponent | E4: Games Won | F4: Games lost | G4: Points For | H4: Points Against | I4: Match Won? | J4: Check that input numbers are within range | K4: Home | L4: Away
A5: =Template!B20 -> 30.04.2018 | B5: 1 | C5: Home | D5: =Template!H20 -> Farmers Boy | E5: 4 | F5: =IF(E5="","",5-E5) -> 1 | G5: 56 | H5: 29 | I5: =IF(E5="","",IF(E5>2,1,0)) -> 1 | J5: =IF(E5="","",IF(OR(E5<0,E5>5,G5<0,G5>(5*13),H5<0,H5>(5*13)),"Number out of range error","Valid Scores entered")) -> Valid Scores entered | K5: =IF(E5="","",IF((E5*13>G5),"Error in submitting Games Won or Points Home","OK")) -> OK | L5: =IF(E5="","",IF((F5*13>H5),"Error in submitting Games Won or Points Away","OK")) -> OK
A6: =Template!B21 -> 14.05.2018 | B6: =B5+1 -> 2 | C6: Away | D6: =Template!G21 -> Old Bulls Head | E6: =INDIRECT(CONCATENATE("'",$D6,"'!$F6")) -> 1 | F6: 4 | G6: =INDIRECT(CONCATENATE("'",$D6,"'!H6")) -> 36 | H6: =INDIRECT(CONCATENATE("'",$D6,"'!G6")) -> 63 | I6: =IF(E6="","",IF(E6>2,1,0)) -> 0 | J6: =IF(E6="","",IF(OR(E6<0,E6>5,G6<0,G6>(5*13),H6<0,H6>(5*13)),"Number out of range error","Valid Scores entered")) -> Valid Scores entered | K6: =IF(E6="","",IF((E6*13>G6),"Error in submitting Games Won or Points Home","OK")) -> OK | L6: =IF(E6="","",IF((F6*13>H6),"Error in submitting Games Won or Points Away","OK")) -> OK
A7: =Template!B22 -> 21.05.2018 | B7: =B6+1 -> 3 | C7: Home | D7: =Template!H22 -> Bye
A8: =Template!B23 -> 04.06.2018 | B8: 4 | C8: Home | D8: =Template!J23 -> Brown Bear | E8: 2 | F8: 3 | G8: 36 | H8: 49 | I8: 0 | J8: Valid Scores entered | K8: OK | L8: OK
A9: =Template!B24 -> 11.06.2018 | B9: 5 | C9: Away | D9: =Template!E24 -> Plough | E9: =INDIRECT(CONCATENATE("'",$D9,"'!$F9")) -> 3 | F9: 2 | G9: =INDIRECT(CONCATENATE("'",$D9,"'!H9")) -> 52 | H9: =INDIRECT(CONCATENATE("'",$D9,"'!G9")) -> 46 | I9: 1 | J9: Valid Scores entered | K9: OK | L9: OK
A10: =Template!B25 -> 18.06.2018 | B10: 6 | C10: Home | D10: =Template!D25 -> George A | E10: 4 | F10: 1 | G10: 56 | H10: 46 | I10: 1 | J10: Valid Scores entered | K10: OK | L10: OK
A11: =Template!B26 -> 25.06.2018 | B11: 7 | C11: Away | D11: =Template!G26 -> Whitehills | E11: =INDIRECT(CONCATENATE("'",$D11,"'!$F11")) -> 3 | F11: =IF(E11="","",5-E11) -> 2 | G11: =INDIRECT(CONCATENATE("'",$D11,"'!H11")) -> 51 | H11: =INDIRECT(CONCATENATE("'",$D11,"'!G11")) -> 59 | I11: =IF(E11="","",IF(E11>2,1,0)) -> 1 | J11: =IF(E11="","",IF(OR(E11<0,E11>5,G11<0,G11>(5*13),H11<0,H11>(5*13)),"Number out of range error","Valid Scores entered")) -> Valid Scores entered | K11: =IF(E11="","",IF((E11*13>G11),"Error in submitting Games Won or Points Home","OK")) -> OK | L11: =IF(E11="","",IF((F11*13>H11),"Error in submitting Games Won or Points Away","OK")) -> OK
A12: =Template!B27 -> 02.07.2018 | B12: 8 | C12: Away | D12: =Template!G27 -> Farmers Boy | E12: =INDIRECT(CONCATENATE("'",$D12,"'!$F12")) -> 1 | F12: 4 | G12: =INDIRECT(CONCATENATE("'",$D12,"'!H12")) -> 37 | H12: =INDIRECT(CONCATENATE("'",$D12,"'!G12")) -> 64 | I12: 0 | J12: Valid Scores entered | K12: OK | L12: OK
A13: =Template!B28 -> 09.07.2018 | B13: 9 | C13: Home | D13: =Template!H28 -> Old Bulls Head | E13: 2 | F13: 3 | G13: 54 | H13: 54 | I13: 0 | J13: Valid Scores entered | K13: OK | L13: OK
A14: =Template!B29 -> 16.07.2018 | B14: 10 | C14: Away | D14: =Template!G29 -> Bye | E14: =INDIRECT(CONCATENATE("'",$D14,"'!$F14")) ->  | F14: =IF(E14="","",5-E14) ->  | G14: =INDIRECT(CONCATENATE("'",$D14,"'!H14")) -> 0 | H14: =INDIRECT(CONCATENATE("'",$D14,"'!G14")) -> 0 | I14: =IF(E14="","",IF(E14>2,1,0)) ->  | J14: =IF(E14="","",IF(OR(E14<0,E14>5,G14<0,G14>(5*13),H14<0,H14>(5*13)),"Number out of range error","Valid Scores entered")) ->  | K14: =IF(E14="","",IF((E14*13>G14),"Error in submitting Games Won or Points Home","OK")) ->  | L14: =IF(E14="","",IF((F14*13>H14),"Error in submitting Games Won or Points Away","OK")) -> 
A15: =Template!B30 -> 23.07.2018 | B15: 11 | C15: Away | D15: =Template!I30 -> Brown Bear | E15: =INDIRECT(CONCATENATE("'",$D15,"'!$F15")) -> 2 | F15: 3 | G15: =INDIRECT(CONCATENATE("'",$D15,"'!H15")) -> 42 | H15: =INDIRECT(CONCATENATE("'",$D15,"'!G15")) -> 49 | I15: 0 | J15: Valid Scores entered | K15: OK | L15: OK
A16: =Template!B31 -> 30.07.2018 | B16: 12 | C16: Home | D16: =Template!F31 -> Plough | E16: 3 | F16: 2 | G16: 61 | H16: 50 | I16: 1 | J16: Valid Scores entered | K16: OK | L16: OK
A17: =Template!B32 -> 06.08.2018 | B17: 13 | C17: Away | D17: =Template!C32 -> George A | E17: =INDIRECT(CONCATENATE("'",$D17,"'!$F17")) -> 4 | F17: 1 | G17: =INDIRECT(CONCATENATE("'",$D17,"'!H17")) -> 62 | H17: =INDIRECT(CONCATENATE("'",$D17,"'!G17")) -> 29 | I17: 1 | J17: Valid Scores entered | K17: OK | L17: OK
A18: =Template!B33 -> 13.08.2018 | B18: 14 | C18: Home | D18: =Template!H33 -> Whitehills | E18: 1 | F18: 4 | G18: 47 | H18: 61 | I18: 0 | J18: Valid Scores entered | K18: OK | L18: OK
A19: =Template!B34 -> 20.08.2018 | B19: 15 | C19: Home | D19: =Template!H34 -> Farmers Boy | E19: 3 | F19: 2 | G19: 56 | H19: 43 | I19: 1 | J19: Valid Scores entered | K19: OK | L19: OK
A20: =Template!B35 -> 03.09.2018 | B20: 16 | C20: Away | D20: =Template!G35 -> Old Bulls Head | E20: =INDIRECT(CONCATENATE("'",$D20,"'!$F20")) -> 3 | F20: 2 | G20: =INDIRECT(CONCATENATE("'",$D20,"'!H20")) -> 52 | H20: =INDIRECT(CONCATENATE("'",$D20,"'!G20")) -> 33 | I20: 1 | J20: Valid Scores entered | K20: OK | L20: OK
A21: =Template!B36 -> 10.09.2018 | B21: 17 | C21: Home | D21: =Template!H36 -> Bye
A22: =Template!B37 -> 17.09.2018 | B22: 18 | C22: Home | D22: =Template!J37 -> Brown Bear | E22: 3 | F22: 2 | G22: 54 | H22: 47 | I22: 1 | J22: Valid Scores entered | K22: OK | L22: OK
A23: =Template!B38 -> 24.09.2018 | B23: 19 | C23: Away | D23: =Template!E38 -> Plough | E23: =INDIRECT(CONCATENATE("'",$D23,"'!$F23")) -> 3 | F23: 2 | G23: =INDIRECT(CONCATENATE("'",$D23,"'!H23")) -> 58 | H23: =INDIRECT(CONCATENATE("'",$D23,"'!G23")) -> 49 | I23: =IF(E23="","",IF(E23>2,1,0)) -> 1 | J23: =IF(E23="","",IF(OR(E23<0,E23>5,G23<0,G23>(5*13),H23<0,H23>(5*13)),"Number out of range error","Valid Scores entered")) -> Valid Scores entered | K23: =IF(E23="","",IF((E23*13>G23),"Error in submitting Games Won or Points Home","OK")) -> OK | L23: =IF(E23="","",IF((F23*13>H23),"Error in submitting Games Won or Points Away","OK")) -> OK
A24: =Template!B39 -> 01.10.2018 | B24: 20 | C24: Home | D24: =Template!D39 -> George A | E24: 4 | F24: 1 | G24: 62 | H24: 29 | I24: 1 | J24: Valid Scores entered | K24: OK | L24: OK
A25: =Template!B40 -> 08.10.2018 | B25: 21 | C25: Away | D25: =Template!G40 -> Whitehills | E25: =INDIRECT(CONCATENATE("'",$D25,"'!$F25")) -> 4 | F25: 1 | G25: =INDIRECT(CONCATENATE("'",$D25,"'!H25")) -> 55 | H25: =INDIRECT(CONCATENATE("'",$D25,"'!G25")) -> 47 | I25: 1 | J25: Valid Scores entered | K25: OK | L25: OK

Sheet Bye
A2: Team | B2: =Template!B5 -> Bye | D2: =CONCATENATE("Home Games:",COUNTIF(C5:C999,"Home")," Away Games:",COUNTIF(C5:C999,"Away")) -> Home Games:10 Away Games:11
K3: Check that there are enough points to win the games
A4: Date | B4: Week | C4: Home/Away | D4: Opponent | E4: Games Won | F4: Games lost | G4: Points For | H4: Points Against | I4: Match Won? | J4: Check that input numbers are within range | K4: Home | L4: Away
A5: =Template!B20 -> 30.04.2018 | B5: 1 | C5: Home | D5: =Template!J20 -> Old Bulls Head | F5: =IF(E5="","",5-E5) ->  | I5: =IF(E5="","",IF(E5>2,1,0)) ->  | J5: =IF(E5="","",IF(OR(E5<0,E5>5,G5<0,G5>(5*13),H5<0,H5>(5*13)),"Number out of range error","Valid Scores entered")) ->  | K5: =IF(E5="","",IF((E5*13>G5),"Error in submitting Games Won or Points Home","OK")) ->  | L5: =IF(E5="","",IF((F5*13>H5),"Error in submitting Games Won or Points Away","OK")) -> 
A6: =Template!B21 -> 14.05.2018 | B6: =B5+1 -> 2 | C6: Away | D6: =Template!I21 -> Brown Bear | E6: =INDIRECT(CONCATENATE("'",$D6,"'!$F6")) ->  | G6: =INDIRECT(CONCATENATE("'",$D6,"'!H6")) -> 0 | H6: =INDIRECT(CONCATENATE("'",$D6,"'!G6")) -> 0 | I6: =IF(E6="","",IF(E6>2,1,0)) ->  | J6: =IF(E6="","",IF(OR(E6<0,E6>5,G6<0,G6>(5*13),H6<0,H6>(5*13)),"Number out of range error","Valid Scores entered")) ->  | K6: =IF(E6="","",IF((E6*13>G6),"Error in submitting Games Won or Points Home","OK")) ->  | L6: =IF(E6="","",IF((F6*13>H6),"Error in submitting Games Won or Points Away","OK")) -> 
A7: =Template!B22 -> 21.05.2018 | B7: =B6+1 -> 3 | C7: Away | D7: =Template!G22 -> Hen and Chickens | E7: =INDIRECT(CONCATENATE("'",$D7,"'!$F7")) ->  | G7: =INDIRECT(CONCATENATE("'",$D7,"'!H7")) -> 0 | H7: =INDIRECT(CONCATENATE("'",$D7,"'!G7")) -> 0
A8: =Template!B23 -> 04.06.2018 | B8: 4 | C8: Home | D8: =Template!F23 -> Plough
A9: =Template!B24 -> 11.06.2018 | B9: 5 | C9: Away | D9: =Template!C24 -> George A | E9: =INDIRECT(CONCATENATE("'",$D9,"'!$F9")) ->  | G9: =INDIRECT(CONCATENATE("'",$D9,"'!H9")) -> 0 | H9: =INDIRECT(CONCATENATE("'",$D9,"'!G9")) -> 0
A10: =Template!B25 -> 18.06.2018 | B10: 6 | C10: Home | D10: =Template!H25 -> Whitehills
A11: =Template!B26 -> 25.06.2018 | B11: 7 | C11: Away | D11: =Template!E26 -> Farmers Boy | E11: =INDIRECT(CONCATENATE("'",$D11,"'!$F11")) ->  | G11: =INDIRECT(CONCATENATE("'",$D11,"'!H11")) -> 0 | H11: =INDIRECT(CONCATENATE("'",$D11,"'!G11")) -> 0
A12: =Template!B27 -> 02.07.2018 | B12: 8 | C12: Away | D12: =Template!I27 -> Old Bulls Head | E12: =INDIRECT(CONCATENATE("'",$D12,"'!$F12")) ->  | G12: =INDIRECT(CONCATENATE("'",$D12,"'!H12")) -> 0 | H12: =INDIRECT(CONCATENATE("'",$D12,"'!G12")) -> 0
A13: =Template!B28 -> 09.07.2018 | B13: 9 | C13: Home | D13: =Template!J28 -> Brown Bear
A14: =Template!B29 -> 16.07.2018 | B14: 10 | C14: Home | D14: =Template!H29 -> Hen and Chickens
A15: =Template!B30 -> 23.07.2018 | B15: 11 | C15: Away | D15: =Template!E30 -> Plough | E15: =INDIRECT(CONCATENATE("'",$D15,"'!$F15")) ->  | G15: =INDIRECT(CONCATENATE("'",$D15,"'!H15")) -> 0 | H15: =INDIRECT(CONCATENATE("'",$D15,"'!G15")) -> 0
A16: =Template!B31 -> 30.07.2018 | B16: 12 | C16: Home | D16: =Template!D31 -> George A
A17: =Template!B32 -> 06.08.2018 | B17: 13 | C17: Away | D17: =Template!G32 -> Whitehills | E17: =INDIRECT(CONCATENATE("'",$D17,"'!$F17")) ->  | G17: =INDIRECT(CONCATENATE("'",$D17,"'!H17")) -> 0 | H17: =INDIRECT(CONCATENATE("'",$D17,"'!G17")) -> 0
A18: =Template!B33 -> 13.08.2018 | B18: 14 | C18: Home | D18: =Template!F33 -> Farmers Boy
A19: =Template!B34 -> 20.08.2018 | B19: 15 | C19: Home | D19: =Template!J34 -> Old Bulls Head
A20: =Template!B35 -> 03.09.2018 | B20: 16 | C20: Away | D20: =Template!I35 -> Brown Bear | E20: =INDIRECT(CONCATENATE("'",$D20,"'!$F20")) ->  | G20: =INDIRECT(CONCATENATE("'",$D20,"'!H20")) -> 0 | H20: =INDIRECT(CONCATENATE("'",$D20,"'!G20")) -> 0
A21: =Template!B36 -> 10.09.2018 | B21: 17 | C21: Away | D21: =Template!G36 -> Hen and Chickens | E21: =INDIRECT(CONCATENATE("'",$D21,"'!$F21")) ->  | G21: =INDIRECT(CONCATENATE("'",$D21,"'!H21")) -> 0 | H21: =INDIRECT(CONCATENATE("'",$D21,"'!G21")) -> 0
A22: =Template!B37 -> 17.09.2018 | B22: 18 | C22: Home | D22: =Template!F37 -> Plough
A23: =Template!B38 -> 24.09.2018 | B23: 19 | C23: Away | D23: =Template!C38 -> George A | E23: =INDIRECT(CONCATENATE("'",$D23,"'!$F23")) ->  | G23: =INDIRECT(CONCATENATE("'",$D23,"'!H23")) -> 0 | H23: =INDIRECT(CONCATENATE("'",$D23,"'!G23")) -> 0 | I23: =IF(E23="","",IF(E23>2,1,0)) ->  | J23: =IF(E23="","",IF(OR(E23<0,E23>5,G23<0,G23>(5*13),H23<0,H23>(5*13)),"Number out of range error","Valid Scores entered")) ->  | K23: =IF(E23="","",IF((E23*13>G23),"Error in submitting Games Won or Points Home","OK")) ->  | L23: =IF(E23="","",IF((F23*13>H23),"Error in submitting Games Won or Points Away","OK")) -> 
A24: =Template!B39 -> 01.10.2018 | B24: 20 | C24: Home | D24: =Template!H39 -> Whitehills
A25: =Template!B40 -> 08.10.2018 | B25: 21 | C25: Away | D25: =Template!E40 -> Farmers Boy | E25: =INDIRECT(CONCATENATE("'",$D25,"'!$F25")) ->  | G25: =INDIRECT(CONCATENATE("'",$D25,"'!H25")) -> 0 | H25: =INDIRECT(CONCATENATE("'",$D25,"'!G25")) -> 0

Sheet Old Bulls Head
A2: Team | B2: =Template!B6 -> Old Bulls Head | D2: =CONCATENATE("Home Games:",COUNTIF(C5:C999,"Home")," Away Games:",COUNTIF(C5:C999,"Away")) -> Home Games:10 Away Games:11
K3: Check that there are enough points to win the games
A4: Date | B4: Week | C4: Home/Away | D4: Opponent | E4: Games Won | F4: Games lost | G4: Points For | H4: Points Against | I4: Match Won? | J4: Check that input numbers are within range | K4: Home | L4: Away
A5: =Template!B20 -> 30.04.2018 | B5: 1 | C5: Away | D5: =Template!I20 -> Bye | E5: =INDIRECT(CONCATENATE("'",$D5,"'!$F5")) ->  | F5: =IF(E5="","",5-E5) ->  | G5: =INDIRECT(CONCATENATE("'",$D5,"'!H5")) -> 0 | H5: =INDIRECT(CONCATENATE("'",$D5,"'!G5")) -> 0 | I5: =IF(E5="","",IF(E5>2,1,0)) ->  | J5: =IF(E5="","",IF(OR(E5<0,E5>5,G5<0,G5>(5*13),H5<0,H5>(5*13)),"Number out of range error","Valid Scores entered")) ->  | K5: =IF(E5="","",IF((E5*13>G5),"Error in submitting Games Won or Points Home","OK")) ->  | L5: =IF(E5="","",IF((F5*13>H5),"Error in submitting Games Won or Points Away","OK")) -> 
A6: =Template!B21 -> 14.05.2018 | B6: =B5+1 -> 2 | C6: Home | D6: =Template!H21 -> Hen and Chickens | E6: 4 | F6: 1 | G6: 63 | H6: 36 | I6: =IF(E6="","",IF(E6>2,1,0)) -> 1 | J6: =IF(E6="","",IF(OR(E6<0,E6>5,G6<0,G6>(5*13),H6<0,H6>(5*13)),"Number out of range error","Valid Scores entered")) -> Valid Scores entered | K6: =IF(E6="","",IF((E6*13>G6),"Error in submitting Games Won or Points Home","OK")) -> OK | L6: =IF(E6="","",IF((F6*13>H6),"Error in submitting Games Won or Points Away","OK")) -> OK
A7: =Template!B22 -> 21.05.2018 | B7: =B6+1 -> 3 | C7: Away | D7: =Template!E22 -> Plough | E7: =INDIRECT(CONCATENATE("'",$D7,"'!$F7")) -> 4 | F7: 1 | G7: =INDIRECT(CONCATENATE("'",$D7,"'!H7")) -> 58 | H7: =INDIRECT(CONCATENATE("'",$D7,"'!G7")) -> 44 | I7: 1 | J7: Valid Scores entered | K7: OK | L7: OK
A8: =Template!B23 -> 04.06.2018 | B8: 4 | C8: Home | D8: =Template!D23 -> George A | E8: 5 | F8: 0 | G8: 65 | H8: 35 | I8: 1 | J8: Valid Scores entered | K8: OK | L8: OK
A9: =Template!B24 -> 11.06.2018 | B9: 5 | C9: Away | D9: =Template!G24 -> Whitehills | E9: =INDIRECT(CONCATENATE("'",$D9,"'!$F9")) -> 3 | F9: 2 | G9: =INDIRECT(CONCATENATE("'",$D9,"'!H9")) -> 51 | H9: =INDIRECT(CONCATENATE("'",$D9,"'!G9")) -> 40 | I9: 1 | J9: Valid Scores entered | K9: OK | L9: OK
A10: =Template!B25 -> 18.06.2018 | B10: 6 | C10: Home | D10: =Template!F25 -> Farmers Boy | E10: 0 | F10: 5 | G10: 22 | H10: 65 | I10: 0 | J10: Valid Scores entered | K10: OK | L10: OK
A11: =Template!B26 -> 25.06.2018 | B11: 7 | C11: Away | D11: =Template!I26 -> Brown Bear | E11: =INDIRECT(CONCATENATE("'",$D11,"'!$F11")) -> 3 | F11: 2 | G11: =INDIRECT(CONCATENATE("'",$D11,"'!H11")) -> 46 | H11: =INDIRECT(CONCATENATE("'",$D11,"'!G11")) -> 52 | I11: 1 | J11: Valid Scores entered | K11: OK | L11: OK
A12: =Template!B27 -> 02.07.2018 | B12: 8 | C12: Home | D12: =Template!J27 -> Bye
A13: =Template!B28 -> 09.07.2018 | B13: 9 | C13: Away | D13: =Template!G28 -> Hen and Chickens | E13: =INDIRECT(CONCATENATE("'",$D13,"'!$F13")) -> 3 | F13: 2 | G13: =INDIRECT(CONCATENATE("'",$D13,"'!H13")) -> 54 | H13: =INDIRECT(CONCATENATE("'",$D13,"'!G13")) -> 54 | I13: 1 | J13: Valid Scores entered | K13: OK | L13: OK
A14: =Template!B29 -> 16.07.2018 | B14: 10 | C14: Home | D14: =Template!F29 -> Plough | E14: 5 | F14: 0 | G14: 65 | H14: 26 | I14: 1 | J14: Valid Scores entered | K14: OK | L14: OK
A15: =Template!B30 -> 23.07.2018 | B15: 11 | C15: Away | D15: =Template!C30 -> George A | E15: =INDIRECT(CONCATENATE("'",$D15,"'!$F15")) -> 2 | F15: 3 | G15: =INDIRECT(CONCATENATE("'",$D15,"'!H15")) -> 55 | H15: =INDIRECT(CONCATENATE("'",$D15,"'!G15")) -> 49 | I15: 0 | J15: Valid Scores entered | K15: OK | L15: OK
A16: =Template!B31 -> 30.07.2018 | B16: 12 | C16: Home | D16: =Template!H31 -> Whitehills | E16: 2 | F16: 3 | G16: 55 | H16: 56 | I16: 0 | J16: Valid Scores entered | K16: OK | L16: OK
A17: =Template!B32 -> 06.08.2018 | B17: 13 | C17: Away | D17: =Template!E32 -> Farmers Boy | E17: =INDIRECT(CONCATENATE("'",$D17,"'!$F17")) -> 2 | F17: 3 | G17: =INDIRECT(CONCATENATE("'",$D17,"'!H17")) -> 51 | H17: =INDIRECT(CONCATENATE("'",$D17,"'!G17")) -> 57 | I17: 0 | J17: Valid Scores entered | K17: OK | L17: OK
A18: =Template!B33 -> 13.08.2018 | B18: 14 | C18: Home | D18: =Template!J33 -> Brown Bear | E18: 1 | F18: 4 | G18: 38 | H18: 53 | I18: 0 | J18: Valid Scores entered | K18: OK | L18: OK
A19: =Template!B34 -> 20.08.2018 | B19: 15 | C19: Away | D19: =Template!I34 -> Bye | E19: =INDIRECT(CONCATENATE("'",$D19,"'!$F19")) ->  | G19: =INDIRECT(CONCATENATE("'",$D19,"'!H19")) -> 0 | H19: =INDIRECT(CONCATENATE("'",$D19,"'!G19")) -> 0
A20: =Template!B35 -> 03.09.2018 | B20: 16 | C20: Home | D20: =Template!H35 -> Hen and Chickens | E20: 2 | F20: 3 | G20: 33 | H20: 52 | I20: 0 | J20: Valid Scores entered | K20: OK | L20: OK
A21: =Template!B36 -> 10.09.2018 | B21: 17 | C21: Away | D21: =Template!E36 -> Plough | E21: =INDIRECT(CONCATENATE("'",$D21,"'!$F21")) -> 3 | F21: 2 | G21: =INDIRECT(CONCATENATE("'",$D21,"'!H21")) -> 48 | H21: =INDIRECT(CONCATENATE("'",$D21,"'!G21")) -> 40 | I21: 1 | J21: Valid Scores entered | K21: OK | L21: OK
A22: =Template!B37 -> 17.09.2018 | B22: 18 | C22: Home | D22: =Template!D37 -> George A | E22: 5 | F22: 0 | G22: 65 | H22: 25 | I22: 1 | J22: Valid Scores entered | K22: OK | L22: OK
A23: =Template!B38 -> 24.09.2018 | B23: 19 | C23: Away | D23: =Template!G38 -> Whitehills | E23: =INDIRECT(CONCATENATE("'",$D23,"'!$F23")) -> 2 | F23: 3 | G23: =INDIRECT(CONCATENATE("'",$D23,"'!H23")) -> 49 | H23: =INDIRECT(CONCATENATE("'",$D23,"'!G23")) -> 55 | I23: =IF(E23="","",IF(E23>2,1,0)) -> 0 | J23: =IF(E23="","",IF(OR(E23<0,E23>5,G23<0,G23>(5*13),H23<0,H23>(5*13)),"Number out of range error","Valid Scores entered")) -> Valid Scores entered | K23: =IF(E23="","",IF((E23*13>G23),"Error in submitting Games Won or Points Home","OK")) -> OK | L23: =IF(E23="","",IF((F23*13>H23),"Error in submitting Games Won or Points Away","OK")) -> OK
A24: =Template!B39 -> 01.10.2018 | B24: 20 | C24: Home | D24: =Template!F39 -> Farmers Boy | E24: 4 | F24: 1 | G24: 61 | H24: 48 | I24: 1 | J24: Valid Scores entered | K24: OK | L24: OK
A25: =Template!B40 -> 08.10.2018 | B25: 21 | C25: Away | D25: =Template!I40 -> Brown Bear | E25: =INDIRECT(CONCATENATE("'",$D25,"'!$F25")) -> 3 | F25: 2 | G25: =INDIRECT(CONCATENATE("'",$D25,"'!H25")) -> 56 | H25: =INDIRECT(CONCATENATE("'",$D25,"'!G25")) -> 58 | I25: 1 | J25: Valid Scores entered | K25: OK | L25: OK

Sheet Farmers Boy
A2: Team | B2: =Template!B7 -> Farmers Boy | D2: =CONCATENATE("Home Games:",COUNTIF(C5:C999,"Home")," Away Games:",COUNTIF(C5:C999,"Away")) -> Home Games:10 Away Games:11
K3: Check that there are enough points to win the games
A4: Date | B4: Week | C4: Home/Away | D4: Opponent | E4: Games Won | F4: Games lost | G4: Points For | H4: Points Against | I4: Match Won? | J4: Check that input numbers are within range | K4: Home | L4: Away
A5: =Template!B20 -> 30.04.2018 | B5: 1 | C5: Away | D5: =Template!G20 -> Hen and Chickens | E5: =INDIRECT(CONCATENATE("'",$D5,"'!$F5")) -> 1 | F5: =IF(E5="","",5-E5) -> 4 | G5: =INDIRECT(CONCATENATE("'",$D5,"'!H5")) -> 29 | H5: =INDIRECT(CONCATENATE("'",$D5,"'!G5")) -> 56 | I5: =IF(E5="","",IF(E5>2,1,0)) -> 0 | J5: =IF(E5="","",IF(OR(E5<0,E5>5,G5<0,G5>(5*13),H5<0,H5>(5*13)),"Number out of range error","Valid Scores entered")) -> Valid Scores entered | K5: =IF(E5="","",IF((E5*13>G5),"Error in submitting Games Won or Points Home","OK")) -> OK | L5: =IF(E5="","",IF((F5*13>H5),"Error in submitting Games Won or Points Away","OK")) -> OK
A6: =Template!B21 -> 14.05.2018 | B6: =B5+1 -> 2 | C6: Home | D6: =Template!F21 -> Plough | E6: 5 | F6: =IF(E6="","",5-E6) -> 0 | G6: 65 | H6: 31 | I6: =IF(E6="","",IF(E6>2,1,0)) -> 1 | J6: =IF(E6="","",IF(OR(E6<0,E6>5,G6<0,G6>(5*13),H6<0,H6>(5*13)),"Number out of range error","Valid Scores entered")) -> Valid Scores entered | K6: =IF(E6="","",IF((E6*13>G6),"Error in submitting Games Won or Points Home","OK")) -> OK | L6: =IF(E6="","",IF((F6*13>H6),"Error in submitting Games Won or Points Away","OK")) -> OK
A7: =Template!B22 -> 21.05.2018 | B7: =B6+1 -> 3 | C7: Away | D7: =Template!C22 -> George A | E7: =INDIRECT(CONCATENATE("'",$D7,"'!$F7")) -> 3 | F7: 2 | G7: =INDIRECT(CONCATENATE("'",$D7,"'!H7")) -> 51 | H7: =INDIRECT(CONCATENATE("'",$D7,"'!G7")) -> 48 | I7: 1 | J7: Valid Scores entered | K7: OK | L7: OK
A8: =Template!B23 -> 04.06.2018 | B8: 4 | C8: Home | D8: =Template!H23 -> Whitehills | E8: 4 | F8: 1 | G8: 64 | H8: 33 | I8: 1 | J8: Valid Scores entered | K8: OK | L8: OK
A9: =Template!B24 -> 11.06.2018 | B9: 5 | C9: Away | D9: =Template!I24 -> Brown Bear | E9: =INDIRECT(CONCATENATE("'",$D9,"'!$F9")) -> 2 | F9: 3 | G9: =INDIRECT(CONCATENATE("'",$D9,"'!H9")) -> 50 | H9: =INDIRECT(CONCATENATE("'",$D9,"'!G9")) -> 61 | I9: 0 | J9: Valid Scores entered | K9: OK | L9: OK
A10: =Template!B25 -> 18.06.2018 | B10: 6 | C10: Away | D10: =Template!E25 -> Old Bulls Head | E10: =INDIRECT(CONCATENATE("'",$D10,"'!$F10")) -> 5 | F10: 0 | G10: =INDIRECT(CONCATENATE("'",$D10,"'!H10")) -> 65 | H10: =INDIRECT(CONCATENATE("'",$D10,"'!G10")) -> 22 | I10: 1 | J10: Valid Scores entered | K10: OK | L10: OK
A11: =Template!B26 -> 25.06.2018 | B11: 7 | C11: Home | D11: =Template!F26 -> Bye
A12: =Template!B27 -> 02.07.2018 | B12: 8 | C12: Home | D12: =Template!H27 -> Hen and Chickens | E12: 4 | F12: 1 | G12: 64 | H12: 37 | I12: 1 | J12: Valid Scores entered | K12: OK | L12: OK
A13: =Template!B28 -> 09.07.2018 | B13: 9 | C13: Away | D13: =Template!E28 -> Plough | E13: =INDIRECT(CONCATENATE("'",$D13,"'!$F13")) -> 4 | F13: 1 | G13: =INDIRECT(CONCATENATE("'",$D13,"'!H13")) -> 61 | H13: =INDIRECT(CONCATENATE("'",$D13,"'!G13")) -> 48 | I13: 1 | J13: Valid Scores entered | K13: OK | L13: OK
A14: =Template!B29 -> 16.07.2018 | B14: 10 | C14: Home | D14: =Template!D29 -> George A | E14: 4 | F14: 1 | G14: 64 | H14: 51 | I14: 1 | J14: Valid Scores entered | K14: OK | L14: OK
A15: =Template!B30 -> 23.07.2018 | B15: 11 | C15: Away | D15: =Template!G30 -> Whitehills | E15: =INDIRECT(CONCATENATE("'",$D15,"'!$F15")) -> 0 | F15: 5 | G15: =INDIRECT(CONCATENATE("'",$D15,"'!H15")) -> 37 | H15: =INDIRECT(CONCATENATE("'",$D15,"'!G15")) -> 65 | I15: 0 | J15: Valid Scores entered | K15: OK | L15: OK
A16: =Template!B31 -> 30.07.2018 | B16: 12 | C16: Home | D16: =Template!J31 -> Brown Bear | E16: 2 | F16: 3 | G16: 35 | H16: 50 | I16: 0 | J16: Valid Scores entered | K16: OK | L16: OK
A17: =Template!B32 -> 06.08.2018 | B17: 13 | C17: Home | D17: =Template!F32 -> Old Bulls Head | E17: 3 | F17: 2 | G17: 57 | H17: 51 | I17: 1 | J17: Valid Scores entered | K17: OK | L17: OK
A18: =Template!B33 -> 13.08.2018 | B18: 14 | C18: Away | D18: =Template!E33 -> Bye | E18: =INDIRECT(CONCATENATE("'",$D18,"'!$F18")) ->  | G18: =INDIRECT(CONCATENATE("'",$D18,"'!H18")) -> 0 | H18: =INDIRECT(CONCATENATE("'",$D18,"'!G18")) -> 0
A19: =Template!B34 -> 20.08.2018 | B19: 15 | C19: Away | D19: =Template!G34 -> Hen and Chickens | E19: =INDIRECT(CONCATENATE("'",$D19,"'!$F19")) -> 2 | F19: 3 | G19: =INDIRECT(CONCATENATE("'",$D19,"'!H19")) -> 43 | H19: =INDIRECT(CONCATENATE("'",$D19,"'!G19")) -> 56 | I19: 0 | J19: Valid Scores entered | K19: OK | L19: OK
A20: =Template!B35 -> 03.09.2018 | B20: 16 | C20: Home | D20: =Template!F35 -> Plough | E20: 4 | F20: 1 | G20: 58 | H20: 18 | I20: 1 | J20: Valid Scores entered | K20: OK | L20: OK
A21: =Template!B36 -> 10.09.2018 | B21: 17 | C21: Away | D21: =Template!C36 -> George A | E21: =INDIRECT(CONCATENATE("'",$D21,"'!$F21")) -> 2 | F21: 3 | G21: =INDIRECT(CONCATENATE("'",$D21,"'!H21")) -> 53 | H21: =INDIRECT(CONCATENATE("'",$D21,"'!G21")) -> 57 | I21: 0 | J21: Valid Scores entered | K21: OK | L21: OK
A22: =Template!B37 -> 17.09.2018 | B22: 18 | C22: Home | D22: =Template!H37 -> Whitehills | E22: 2 | F22: 3 | G22: 50 | H22: 51 | I22: 0 | J22: Valid Scores entered | K22: OK | L22: OK
A23: =Template!B38 -> 24.09.2018 | B23: 19 | C23: Away | D23: =Template!I38 -> Brown Bear | E23: =INDIRECT(CONCATENATE("'",$D23,"'!$F23")) -> 1 | F23: 4 | G23: =INDIRECT(CONCATENATE("'",$D23,"'!H23")) -> 30 | H23: =INDIRECT(CONCATENATE("'",$D23,"'!G23")) -> 64 | I23: =IF(E23="","",IF(E23>2,1,0)) -> 0 | J23: =IF(E23="","",IF(OR(E23<0,E23>5,G23<0,G23>(5*13),H23<0,H23>(5*13)),"Number out of range error","Valid Scores entered")) -> Valid Scores entered | K23: =IF(E23="","",IF((E23*13>G23),"Error in submitting Games Won or Points Home","OK")) -> OK | L23: =IF(E23="","",IF((F23*13>H23),"Error in submitting Games Won or Points Away","OK")) -> OK
A24: =Template!B39 -> 01.10.2018 | B24: 20 | C24: Away | D24: =Template!E39 -> Old Bulls Head | E24: =INDIRECT(CONCATENATE("'",$D24,"'!$F24")) -> 1 | F24: 4 | G24: =INDIRECT(CONCATENATE("'",$D24,"'!H24")) -> 48 | H24: =INDIRECT(CONCATENATE("'",$D24,"'!G24")) -> 61 | I24: 0 | J24: Valid Scores entered | K24: OK | L24: OK
A25: =Template!B40 -> 08.10.2018 | B25: 21 | C25: Home | D25: =Template!F40 -> Bye

Sheet Whitehills
A2: Team | B2: =Template!B8 -> Whitehills | D2: =CONCATENATE("Home Games:",COUNTIF(C5:C999,"Home")," Away Games:",COUNTIF(C5:C999,"Away")) -> Home Games:10 Away Games:11
K3: Check that there are enough points to win the games
A4: Date | B4: Week | C4: Home/Away | D4: Opponent | E4: Games Won | F4: Games lost | G4: Points For | H4: Points Against | I4: Match Won? | J4: Check that input numbers are within range | K4: Home | L4: Away
A5: =Template!B20 -> 30.04.2018 | B5: 1 | C5: Away | D5: =Template!E20 -> Plough | E5: =INDIRECT(CONCATENATE("'",$D5,"'!$F5")) -> 3 | F5: =IF(E5="","",5-E5) -> 2 | G5: =INDIRECT(CONCATENATE("'",$D5,"'!H5")) -> 56 | H5: =INDIRECT(CONCATENATE("'",$D5,"'!G5")) -> 50 | I5: =IF(E5="","",IF(E5>2,1,0)) -> 1 | J5: =IF(E5="","",IF(OR(E5<0,E5>5,G5<0,G5>(5*13),H5<0,H5>(5*13)),"Number out of range error","Valid Scores entered")) -> Valid Scores entered | K5: =IF(E5="","",IF((E5*13>G5),"Error in submitting Games Won or Points Home","OK")) -> OK | L5: =IF(E5="","",IF((F5*13>H5),"Error in submitting Games Won or Points Away","OK")) -> OK
A6: =Template!B21 -> 14.05.2018 | B6: =B5+1 -> 2 | C6: Home | D6: =Template!D21 -> George A | E6: 4 | F6: 1 | G6: 64 | H6: 40 | I6: =IF(E6="","",IF(E6>2,1,0)) -> 1 | J6: =IF(E6="","",IF(OR(E6<0,E6>5,G6<0,G6>(5*13),H6<0,H6>(5*13)),"Number out of range error","Valid Scores entered")) -> Valid Scores entered | K6: =IF(E6="","",IF((E6*13>G6),"Error in submitting Games Won or Points Home","OK")) -> OK | L6: =IF(E6="","",IF((F6*13>H6),"Error in submitting Games Won or Points Away","OK")) -> OK
A7: =Template!B22 -> 21.05.2018 | B7: =B6+1 -> 3 | C7: Away | D7: =Template!I22 -> Brown Bear | E7: =INDIRECT(CONCATENATE("'",$D7,"'!$F7")) -> 1 | F7: 4 | G7: =INDIRECT(CONCATENATE("'",$D7,"'!H7")) -> 53 | H7: =INDIRECT(CONCATENATE("'",$D7,"'!G7")) -> 54 | I7: 0 | J7: Valid Scores entered | K7: OK | L7: OK
A8: =Template!B23 -> 04.06.2018 | B8: 4 | C8: Away | D8: =Template!G23 -> Farmers Boy | E8: =INDIRECT(CONCATENATE("'",$D8,"'!$F8")) -> 1 | F8: 4 | G8: =INDIRECT(CONCATENATE("'",$D8,"'!H8")) -> 33 | H8: =INDIRECT(CONCATENATE("'",$D8,"'!G8")) -> 64 | I8: 0 | J8: Valid Scores entered | K8: OK | L8: OK
A9: =Template!B24 -> 11.06.2018 | B9: 5 | C9: Home | D9: =Template!H24 -> Old Bulls Head | E9: 2 | F9: 3 | G9: 40 | H9: 51 | I9: 0 | J9: Valid Scores entered | K9: OK | L9: OK
A10: =Template!B25 -> 18.06.2018 | B10: 6 | C10: Away | D10: =Template!G25 -> Bye | E10: =INDIRECT(CONCATENATE("'",$D10,"'!$F10")) ->  | G10: =INDIRECT(CONCATENATE("'",$D10,"'!H10")) -> 0 | H10: =INDIRECT(CONCATENATE("'",$D10,"'!G10")) -> 0
A11: =Template!B26 -> 25.06.2018 | B11: 7 | C11: Home | D11: =Template!H26 -> Hen and Chickens | E11: 2 | F11: 3 | G11: 59 | H11: 51 | I11: 0 | J11: Valid Scores entered | K11: OK | L11: OK
A12: =Template!B27 -> 02.07.2018 | B12: 8 | C12: Home | D12: =Template!F27 -> Plough | E12: 4 | F12: 1 | G12: 63 | H12: 40 | I12: 1 | J12: Valid Scores entered | K12: OK | L12: OK
A13: =Template!B28 -> 09.07.2018 | B13: 9 | C13: Away | D13: =Template!C28 -> George A | E13: =INDIRECT(CONCATENATE("'",$D13,"'!$F13")) -> 2 | F13: 3 | G13: =INDIRECT(CONCATENATE("'",$D13,"'!H13")) -> 40 | H13: =INDIRECT(CONCATENATE("'",$D13,"'!G13")) -> 55 | I13: 0 | J13: Valid Scores entered | K13: OK | L13: OK
A14: =Template!B29 -> 16.07.2018 | B14: 10 | C14: Home | D14: =Template!J29 -> Brown Bear | E14: 2 | F14: 3 | G14: 36 | H14: 43 | I14: 0 | J14: Valid Scores entered | K14: OK | L14: OK
A15: =Template!B30 -> 23.07.2018 | B15: 11 | C15: Home | D15: =Template!H30 -> Farmers Boy | E15: 5 | F15: 0 | G15: 65 | H15: 37 | I15: 1 | J15: Valid Scores entered | K15: OK | L15: OK
A16: =Template!B31 -> 30.07.2018 | B16: 12 | C16: Away | D16: =Template!G31 -> Old Bulls Head | E16: =INDIRECT(CONCATENATE("'",$D16,"'!$F16")) -> 3 | F16: 2 | G16: =INDIRECT(CONCATENATE("'",$D16,"'!H16")) -> 56 | H16: =INDIRECT(CONCATENATE("'",$D16,"'!G16")) -> 55 | I16: 1 | J16: Valid Scores entered | K16: OK | L16: OK
A17: =Template!B32 -> 06.08.2018 | B17: 13 | C17: Home | D17: =Template!H32 -> Bye
A18: =Template!B33 -> 13.08.2018 | B18: 14 | C18: Away | D18: =Template!G33 -> Hen and Chickens | E18: =INDIRECT(CONCATENATE("'",$D18,"'!$F18")) -> 4 | F18: 1 | G18: =INDIRECT(CONCATENATE("'",$D18,"'!H18")) -> 61 | H18: =INDIRECT(CONCATENATE("'",$D18,"'!G18")) -> 47 | I18: 1 | J18: Valid Scores entered | K18: OK | L18: OK
A19: =Template!B34 -> 20.08.2018 | B19: 15 | C19: Away | D19: =Template!E34 -> Plough | E19: =INDIRECT(CONCATENATE("'",$D19,"'!$F19")) -> 3 | F19: 2 | G19: =INDIRECT(CONCATENATE("'",$D19,"'!H19")) -> 59 | H19: =INDIRECT(CONCATENATE("'",$D19,"'!G19")) -> 44 | I19: 1 | J19: Valid Scores entered | K19: OK | L19: OK
A20: =Template!B35 -> 03.09.2018 | B20: 16 | C20: Home | D20: =Template!D35 -> George A | E20: 4 | F20: 1 | G20: 59 | H20: 23 | I20: 1 | J20: Valid Scores entered | K20: OK | L20: OK
A21: =Template!B36 -> 10.09.2018 | B21: 17 | C21: Away | D21: =Template!I36 -> Brown Bear | E21: =INDIRECT(CONCATENATE("'",$D21,"'!$F21")) -> 4 | F21: 1 | G21: =INDIRECT(CONCATENATE("'",$D21,"'!H21")) -> 63 | H21: =INDIRECT(CONCATENATE("'",$D21,"'!G21")) -> 41 | I21: 1 | J21: Valid Scores entered | K21: OK | L21: OK
A22: =Template!B37 -> 17.09.2018 | B22: 18 | C22: Away | D22: =Template!G37 -> Farmers Boy | E22: =INDIRECT(CONCATENATE("'",$D22,"'!$F22")) -> 3 | F22: 2 | G22: =INDIRECT(CONCATENATE("'",$D22,"'!H22")) -> 51 | H22: =INDIRECT(CONCATENATE("'",$D22,"'!G22")) -> 50 | I22: 1 | J22: Valid Scores entered | K22: OK | L22: OK
A23: =Template!B38 -> 24.09.2018 | B23: 19 | C23: Home | D23: =Template!H38 -> Old Bulls Head | E23: 3 | F23: 2 | G23: 55 | H23: 49 | I23: =IF(E23="","",IF(E23>2,1,0)) -> 1 | J23: =IF(E23="","",IF(OR(E23<0,E23>5,G23<0,G23>(5*13),H23<0,H23>(5*13)),"Number out of range error","Valid Scores entered")) -> Valid Scores entered | K23: =IF(E23="","",IF((E23*13>G23),"Error in submitting Games Won or Points Home","OK")) -> OK | L23: =IF(E23="","",IF((F23*13>H23),"Error in submitting Games Won or Points Away","OK")) -> OK
A24: =Template!B39 -> 01.10.2018 | B24: 20 | C24: Away | D24: =Template!G39 -> Bye | E24: =INDIRECT(CONCATENATE("'",$D24,"'!$F24")) ->  | G24: =INDIRECT(CONCATENATE("'",$D24,"'!H24")) -> 0 | H24: =INDIRECT(CONCATENATE("'",$D24,"'!G24")) -> 0
A25: =Template!B40 -> 08.10.2018 | B25: 21 | C25: Home | D25: =Template!H40 -> Hen and Chickens | E25: 1 | F25: 4 | G25: 47 | H25: 55 | I25: 0 | J25: Valid Scores entered | K25: OK | L25: OK

Sheet Brown Bear
A2: Team | B2: =Template!B9 -> Brown Bear | D2: =CONCATENATE("Home Games:",COUNTIF(C5:C999,"Home")," Away Games:",COUNTIF(C5:C999,"Away")) -> Home Games:11 Away Games:10
K3: Check that there are enough points to win the games
A4: Date | B4: Week | C4: Home/Away | D4: Opponent | E4: Games Won | F4: Games lost | G4: Points For | H4: Points Against | I4: Match Won? | J4: Check that input numbers are within range | K4: Home | L4: Away
A5: =Template!B20 -> 30.04.2018 | B5: 1 | C5: Away | D5: =Template!C20 -> George A | E5: =INDIRECT(CONCATENATE("'",$D5,"'!$F5")) -> 2 | F5: =IF(E5="","",5-E5) -> 3 | G5: =INDIRECT(CONCATENATE("'",$D5,"'!H5")) -> 57 | H5: =INDIRECT(CONCATENATE("'",$D5,"'!G5")) -> 44 | I5: =IF(E5="","",IF(E5>2,1,0)) -> 0 | J5: =IF(E5="","",IF(OR(E5<0,E5>5,G5<0,G5>(5*13),H5<0,H5>(5*13)),"Number out of range error","Valid Scores entered")) -> Valid Scores entered | K5: =IF(E5="","",IF((E5*13>G5),"Error in submitting Games Won or Points Home","OK")) -> OK | L5: =IF(E5="","",IF((F5*13>H5),"Error in submitting Games Won or Points Away","OK")) -> OK
A6: =Template!B21 -> 14.05.2018 | B6: =B5+1 -> 2 | C6: Home | D6: =Template!J21 -> Bye | I6: =IF(E6="","",IF(E6>2,1,0)) ->  | J6: =IF(E6="","",IF(OR(E6<0,E6>5,G6<0,G6>(5*13),H6<0,H6>(5*13)),"Number out of range error","Valid Scores entered")) ->  | K6: =IF(E6="","",IF((E6*13>G6),"Error in submitting Games Won or Points Home","OK")) ->  | L6: =IF(E6="","",IF((F6*13>H6),"Error in submitting Games Won or Points Away","OK")) -> 
A7: =Template!B22 -> 21.05.2018 | B7: =B6+1 -> 3 | C7: Home | D7: =Template!J22 -> Whitehills | E7: 4 | F7: 1 | G7: 54 | H7: 53 | I7: 1 | J7: Valid Scores entered | K7: OK | L7: OK
A8: =Template!B23 -> 04.06.2018 | B8: 4 | C8: Away | D8: =Template!I23 -> Hen and Chickens | E8: =INDIRECT(CONCATENATE("'",$D8,"'!$F8")) -> 3 | F8: 2 | G8: =INDIRECT(CONCATENATE("'",$D8,"'!H8")) -> 49 | H8: =INDIRECT(CONCATENATE("'",$D8,"'!G8")) -> 36 | I8: 1 | J8: Valid Scores entered | K8: OK | L8: OK
A9: =Template!B24 -> 11.06.2018 | B9: 5 | C9: Home | D9: =Template!J24 -> Farmers Boy | E9: 3 | F9: 2 | G9: 61 | H9: 50 | I9: 1 | J9: Valid Scores entered | K9: OK | L9: OK
A10: =Template!B25 -> 18.06.2018 | B10: 6 | C10: Away | D10: =Template!I25 -> Plough | E10: =INDIRECT(CONCATENATE("'",$D10,"'!$F10")) -> 2 | F10: 3 | G10: =INDIRECT(CONCATENATE("'",$D10,"'!H10")) -> 55 | H10: =INDIRECT(CONCATENATE("'",$D10,"'!G10")) -> 54 | I10: 0 | J10: Valid Scores entered | K10: OK | L10: OK
A11: =Template!B26 -> 25.06.2018 | B11: 7 | C11: Home | D11: =Template!J26 -> Old Bulls Head | E11: 2 | F11: 3 | G11: 52 | H11: 46 | I11: 0 | J11: Valid Scores entered | K11: OK | L11: OK
A12: =Template!B27 -> 02.07.2018 | B12: 8 | C12: Home | D12: =Template!D27 -> George A | E12: 5 | F12: =IF(E12="","",5-E12) -> 0 | G12: 65 | H12: 28 | I12: 1 | J12: Valid Scores entered | K12: OK | L12: OK
A13: =Template!B28 -> 09.07.2018 | B13: 9 | C13: Away | D13: =Template!I28 -> Bye | E13: =INDIRECT(CONCATENATE("'",$D13,"'!$F13")) ->  | G13: =INDIRECT(CONCATENATE("'",$D13,"'!H13")) -> 0 | H13: =INDIRECT(CONCATENATE("'",$D13,"'!G13")) -> 0
A14: =Template!B29 -> 16.07.2018 | B14: 10 | C14: Away | D14: =Template!I29 -> Whitehills | E14: =INDIRECT(CONCATENATE("'",$D14,"'!$F14")) -> 3 | F14: 2 | G14: =INDIRECT(CONCATENATE("'",$D14,"'!H14")) -> 43 | H14: =INDIRECT(CONCATENATE("'",$D14,"'!G14")) -> 36 | I14: 1 | J14: Valid Scores entered | K14: OK | L14: OK
A15: =Template!B30 -> 23.07.2018 | B15: 11 | C15: Home | D15: =Template!J30 -> Hen and Chickens | E15: 3 | F15: 2 | G15: 49 | H15: 42 | I15: 1 | J15: Valid Scores entered | K15: OK | L15: OK
A16: =Template!B31 -> 30.07.2018 | B16: 12 | C16: Away | D16: =Template!I31 -> Farmers Boy | E16: =INDIRECT(CONCATENATE("'",$D16,"'!$F16")) -> 3 | F16: 2 | G16: =INDIRECT(CONCATENATE("'",$D16,"'!H16")) -> 50 | H16: =INDIRECT(CONCATENATE("'",$D16,"'!G16")) -> 35 | I16: 1 | J16: Valid Scores entered | K16: OK | L16: OK
A17: =Template!B32 -> 06.08.2018 | B17: 13 | C17: Home | D17: =Template!J32 -> Plough | E17: 2 | F17: 3 | G17: 48 | H17: 55 | I17: 0 | J17: Valid Scores entered | K17: OK | L17: OK
A18: =Template!B33 -> 13.08.2018 | B18: 14 | C18: Away | D18: =Template!I33 -> Old Bulls Head | E18: =INDIRECT(CONCATENATE("'",$D18,"'!$F18")) -> 4 | F18: 1 | G18: =INDIRECT(CONCATENATE("'",$D18,"'!H18")) -> 53 | H18: =INDIRECT(CONCATENATE("'",$D18,"'!G18")) -> 38 | I18: 1 | J18: Valid Scores entered | K18: OK | L18: OK
A19: =Template!B34 -> 20.08.2018 | B19: 15 | C19: Away | D19: =Template!C34 -> George A | E19: =INDIRECT(CONCATENATE("'",$D19,"'!$F19")) -> 3 | F19: 2 | G19: =INDIRECT(CONCATENATE("'",$D19,"'!H19")) -> 53 | H19: =INDIRECT(CONCATENATE("'",$D19,"'!G19")) -> 35 | I19: 1 | J19: Valid Scores entered | K19: OK | L19: OK
A20: =Template!B35 -> 03.09.2018 | B20: 16 | C20: Home | D20: =Template!J35 -> Bye
A21: =Template!B36 -> 10.09.2018 | B21: 17 | C21: Home | D21: =Template!J36 -> Whitehills | E21: 1 | F21: 4 | G21: 41 | H21: 63 | I21: 0 | J21: Valid Scores entered | K21: OK | L21: OK
A22: =Template!B37 -> 17.09.2018 | B22: 18 | C22: Away | D22: =Template!I37 -> Hen and Chickens | E22: =INDIRECT(CONCATENATE("'",$D22,"'!$F22")) -> 2 | F22: 3 | G22: =INDIRECT(CONCATENATE("'",$D22,"'!H22")) -> 47 | H22: =INDIRECT(CONCATENATE("'",$D22,"'!G22")) -> 54 | I22: 0 | J22: Valid Scores entered | K22: OK | L22: OK
A23: =Template!B38 -> 24.09.2018 | B23: 19 | C23: Home | D23: =Template!J38 -> Farmers Boy | E23: 4 | F23: 1 | G23: 64 | H23: 30 | I23: =IF(E23="","",IF(E23>2,1,0)) -> 1 | J23: =IF(E23="","",IF(OR(E23<0,E23>5,G23<0,G23>(5*13),H23<0,H23>(5*13)),"Number out of range error","Valid Scores entered")) -> Valid Scores entered | K23: =IF(E23="","",IF((E23*13>G23),"Error in submitting Games Won or Points Home","OK")) -> OK | L23: =IF(E23="","",IF((F23*13>H23),"Error in submitting Games Won or Points Away","OK")) -> OK
A24: =Template!B39 -> 01.10.2018 | B24: 20 | C24: Away | D24: =Template!I39 -> Plough | E24: =INDIRECT(CONCATENATE("'",$D24,"'!$F24")) -> 4 | F24: 1 | G24: =INDIRECT(CONCATENATE("'",$D24,"'!H24")) -> 62 | H24: =INDIRECT(CONCATENATE("'",$D24,"'!G24")) -> 42 | I24: 1 | J24: Valid Scores entered | K24: OK | L24: OK
A25: =Template!B40 -> 08.10.2018 | B25: 21 | C25: Home | D25: =Template!J40 -> Old Bulls Head | E25: 2 | F25: 3 | G25: 58 | H25: 56 | I25: 0 | J25: Valid Scores entered | K25: OK | L25: OK

Sheet Template
A1: Team Number | B1: Team Name | C1: Buddy Team
A2: 1 | B2: George A | C2: =B6 -> Old Bulls Head
A3: 2 | B3: Plough | C3: =B7 -> Farmers Boy
A4: 3 | B4: Hen and Chickens | C4: =B8 -> Whitehills | F4: The yellow box names are the controls for the spreadsheet. The tab names should match the team names specified here exactly
A5: 4 | B5: Bye | C5: =B9 -> Brown Bear
A6: 5 | B6: Old Bulls Head | C6: =B2 -> George A
A7: 6 | B7: Farmers Boy | C7: =B3 -> Plough
A8: 7 | B8: Whitehills | C8: =B4 -> Hen and Chickens
A9: 8 | B9: Brown Bear | C9: =B5 -> Bye
C18: Match 1 | E18: Match 2 | G18: Match 3 | I18: Match 4
A19: Week | B19: Date | C19: Home | D19: Away | E19: Home | F19: Away | G19: Home | H19: Away | I19: Home | J19: Away
A20: 1 | B20: 30.04.2018 | C20: =team1 -> George A | D20: =team8 -> Brown Bear | E20: =team2 -> Plough | F20: =team7 -> Whitehills | G20: =team3 -> Hen and Chickens | H20: =team6 -> Farmers Boy | I20: =team4 -> Bye | J20: =team5 -> Old Bulls Head
A21: 2 | B21: 14.05.2018 | C21: =team7 -> Whitehills | D21: =team1 -> George A | E21: =team6 -> Farmers Boy | F21: =team2 -> Plough | G21: =team5 -> Old Bulls Head | H21: =team3 -> Hen and Chickens | I21: =team8 -> Brown Bear | J21: =team4 -> Bye
A22: 3 | B22: 21.05.2018 | C22: =team1 -> George A | D22: =team6 -> Farmers Boy | E22: =team2 -> Plough | F22: =team5 -> Old Bulls Head | G22: =team3 -> Hen and Chickens | H22: =team4 -> Bye | I22: =team8 -> Brown Bear | J22: =team7 -> Whitehills
A23: 4 | B23: 04.06.2018 | C23: =team5 -> Old Bulls Head | D23: =team1 -> George A | E23: =team4 -> Bye | F23: =team2 -> Plough | G23: =team6 -> Farmers Boy | H23: =team7 -> Whitehills | I23: =team3 -> Hen and Chickens | J23: =team8 -> Brown Bear
A24: 5 | B24: 11.06.2018 | C24: =team1 -> George A | D24: =team4 -> Bye | E24: =team2 -> Plough | F24: =team3 -> Hen and Chickens | G24: =team7 -> Whitehills | H24: =team5 -> Old Bulls Head | I24: =team8 -> Brown Bear | J24: =team6 -> Farmers Boy
A25: 6 | B25: 18.06.2018 | C25: =team3 -> Hen and Chickens | D25: =team1 -> George A | E25: =team5 -> Old Bulls Head | F25: =team6 -> Farmers Boy | G25: =team4 -> Bye | H25: =team7 -> Whitehills | I25: =team2 -> Plough | J25: =team8 -> Brown Bear
A26: 7 | B26: 25.06.2018 | C26: =team1 -> George A | D26: =team2 -> Plough | E26: =team6 -> Farmers Boy | F26: =team4 -> Bye | G26: =team7 -> Whitehills | H26: =team3 -> Hen and Chickens | I26: =team8 -> Brown Bear | J26: =team5 -> Old Bulls Head
A27: 8 | B27: 02.07.2018 | C27: =team8 -> Brown Bear | D27: =team1 -> George A | E27: =team7 -> Whitehills | F27: =team2 -> Plough | G27: =team6 -> Farmers Boy | H27: =team3 -> Hen and Chickens | I27: =team5 -> Old Bulls Head | J27: =team4 -> Bye
A28: 9 | B28: 09.07.2018 | C28: =team1 -> George A | D28: =team7 -> Whitehills | E28: =team2 -> Plough | F28: =team6 -> Farmers Boy | G28: =team3 -> Hen and Chickens | H28: =team5 -> Old Bulls Head | I28: =team4 -> Bye | J28: =team8 -> Brown Bear
A29: 10 | B29: 16.07.2018 | C29: =team6 -> Farmers Boy | D29: =team1 -> George A | E29: =team5 -> Old Bulls Head | F29: =team2 -> Plough | G29: =team4 -> Bye | H29: =team3 -> Hen and Chickens | I29: =team7 -> Whitehills | J29: =team8 -> Brown Bear
A30: 11 | B30: 23.07.2018 | C30: =team1 -> George A | D30: =team5 -> Old Bulls Head | E30: =team2 -> Plough | F30: =team4 -> Bye | G30: =team7 -> Whitehills | H30: =team6 -> Farmers Boy | I30: =team8 -> Brown Bear | J30: =team3 -> Hen and Chickens
A31: 12 | B31: 30.07.2018 | C31: =team4 -> Bye | D31: =team1 -> George A | E31: =team3 -> Hen and Chickens | F31: =team2 -> Plough | G31: =team5 -> Old Bulls Head | H31: =team7 -> Whitehills | I31: =team6 -> Farmers Boy | J31: =team8 -> Brown Bear
A32: 13 | B32: 06.08.2018 | C32: =team1 -> George A | D32: =team3 -> Hen and Chickens | E32: =team6 -> Farmers Boy | F32: =team5 -> Old Bulls Head | G32: =team7 -> Whitehills | H32: =team4 -> Bye | I32: =team8 -> Brown Bear | J32: =team2 -> Plough
A33: 14 | B33: 13.08.2018 | C33: =team2 -> Plough | D33: =team1 -> George A | E33: =team4 -> Bye | F33: =team6 -> Farmers Boy | G33: =team3 -> Hen and Chickens | H33: =team7 -> Whitehills | I33: =team5 -> Old Bulls Head | J33: =team8 -> Brown Bear
A34: 15 | B34: 20.08.2018 | C34: =team1 -> George A | D34: =team8 -> Brown Bear | E34: =team2 -> Plough | F34: =team7 -> Whitehills | G34: =team3 -> Hen and Chickens | H34: =team6 -> Farmers Boy | I34: =team4 -> Bye | J34: =team5 -> Old Bulls Head
A35: 16 | B35: 03.09.2018 | C35: =team7 -> Whitehills | D35: =team1 -> George A | E35: =team6 -> Farmers Boy | F35: =team2 -> Plough | G35: =team5 -> Old Bulls Head | H35: =team3 -> Hen and Chickens | I35: =team8 -> Brown Bear | J35: =team4 -> Bye
A36: 17 | B36: 10.09.2018 | C36: =team1 -> George A | D36: =team6 -> Farmers Boy | E36: =team2 -> Plough | F36: =team5 -> Old Bulls Head | G36: =team3 -> Hen and Chickens | H36: =team4 -> Bye | I36: =team8 -> Brown Bear | J36: =team7 -> Whitehills
A37: 18 | B37: 17.09.2018 | C37: =team5 -> Old Bulls Head | D37: =team1 -> George A | E37: =team4 -> Bye | F37: =team2 -> Plough | G37: =team6 -> Farmers Boy | H37: =team7 -> Whitehills | I37: =team3 -> Hen and Chickens | J37: =team8 -> Brown Bear
A38: 19 | B38: 24.09.2018 | C38: =team1 -> George A | D38: =team4 -> Bye | E38: =team2 -> Plough | F38: =team3 -> Hen and Chickens | G38: =team7 -> Whitehills | H38: =team5 -> Old Bulls Head | I38: =team8 -> Brown Bear | J38: =team6 -> Farmers Boy
A39: 20 | B39: 01.10.2018 | C39: =team3 -> Hen and Chickens | D39: =team1 -> George A | E39: =team5 -> Old Bulls Head | F39: =team6 -> Farmers Boy | G39: =team4 -> Bye | H39: =team7 -> Whitehills | I39: =team2 -> Plough | J39: =team8 -> Brown Bear
A40: 21 | B40: 08.10.2018 | C40: =team1 -> George A | D40: =team2 -> Plough | E40: =team6 -> Farmers Boy | F40: =team4 -> Bye | G40: =team7 -> Whitehills | H40: =team3 -> Hen and Chickens | I40: =team8 -> Brown Bear | J40: =team5 -> Old Bulls Head
